[Event "Late-Titled-Tuesday-Blitz-January-23-2024"]
[Site "Chess.com"]
[Date "2024.01.23"]
[Round "6"]
[White "ansko1999"]
[Black "brunoo2003"]
[Result "1-0"]
[WhiteElo "2710"]
[BlackElo "2527"]
[TimeControl "180+1"]
[EndTime "15:05:51 PST"]
[Termination "ansko1999 won by resignation"]

1. c4 {[%clk 0:03:00.9]} 1... Nf6 {[%clk 0:02:42.9]} 2. Nf3 {[%clk 0:02:58.1]}
2... e6 {[%clk 0:02:38.9]} 3. g3 {[%clk 0:02:55.2]} 3... d5 {[%clk 0:02:38.4]}
4. d4 {[%clk 0:02:55.4]} 4... dxc4 {[%clk 0:02:38]} 5. Bg2 {[%clk 0:02:54.1]}
5... Bd7 {[%clk 0:02:38.1]} 6. Ne5 {[%clk 0:02:54.1]} 6... Bc6 {[%clk
0:02:37.5]} 7. Nxc6 {[%clk 0:02:54.4]} 7... Nxc6 {[%clk 0:02:38.3]} 8. e3 {[%clk
0:02:54.5]} 8... Qd7 {[%clk 0:02:37.8]} 9. O-O {[%clk 0:02:53.6]} 9... Rd8
{[%clk 0:02:36.7]} 10. Nd2 {[%clk 0:02:43.4]} 10... e5 {[%clk 0:02:34.4]} 11.
Nxc4 {[%clk 0:02:39.7]} 11... exd4 {[%clk 0:02:23.2]} 12. exd4 {[%clk
0:02:39.2]} 12... Nxd4 {[%clk 0:02:23.5]} 13. Re1+ {[%clk 0:02:28.4]} 13... Be7
{[%clk 0:02:23.4]} 14. Be3 {[%clk 0:02:12.2]} 14... c5 {[%clk 0:02:13.5]} 15.
Ne5 {[%clk 0:02:09]} 15... Qb5 {[%clk 0:02:12.2]} 16. Bf1 {[%clk 0:01:48.8]}
16... Qa5 {[%clk 0:01:57.7]} 17. Bxd4 {[%clk 0:01:44.2]} 17... Rxd4 {[%clk
0:01:55.4]} 18. Qb3 {[%clk 0:01:40.3]} 18... O-O {[%clk 0:01:46.1]} 19. Nxf7
{[%clk 0:01:17.4]} 19... Rxf7 {[%clk 0:01:03]} 20. Rxe7 {[%clk 0:01:16.1]} 20...
Nd5 {[%clk 0:00:50.3]} 21. Rxf7 {[%clk 0:00:48.7]} 21... Kxf7 {[%clk 0:00:51.2]}
22. Qxb7+ {[%clk 0:00:23]} 22... Kg6 {[%clk 0:00:33.2]} 23. Qc6+ {[%clk
0:00:19.5]} 23... Nf6 {[%clk 0:00:32.6]} 24. Qf3 {[%clk 0:00:14.5]} 24... Qd2
{[%clk 0:00:29.3]} 25. b3 {[%clk 0:00:13.4]} 25... h5 {[%clk 0:00:28.3]} 26. h4
{[%clk 0:00:13.3]} 26... a5 {[%clk 0:00:20.7]} 27. Bh3 {[%clk 0:00:13.2]} 27...
Kh6 {[%clk 0:00:18.8]} 28. Rf1 {[%clk 0:00:06.3]} 28... Qd3 {[%clk 0:00:17.5]}
29. Qxd3 {[%clk 0:00:05.7]} 29... Rxd3 {[%clk 0:00:18.4]} 30. Rc1 {[%clk
0:00:06.1]} 30... Rd2 {[%clk 0:00:16.8]} 31. a4 {[%clk 0:00:05.4]} 31... Rd5
{[%clk 0:00:16.7]} 32. Be6 {[%clk 0:00:05.4]} 32... Re5 {[%clk 0:00:16.8]} 33.
Bc4 {[%clk 0:00:05.5]} 33... Nd7 {[%clk 0:00:14.7]} 34. Kf1 {[%clk 0:00:05.9]}
34... Nf6 {[%clk 0:00:08.8]} 35. Bd3 {[%clk 0:00:05.6]} 35... Ng4 {[%clk
0:00:07.1]} 36. Rc4 {[%clk 0:00:03.7]} 36... Rd5 {[%clk 0:00:06]} 37. Be2 {[%clk
0:00:03.7]} 37... Ne5 {[%clk 0:00:05.7]} 38. Rc3 {[%clk 0:00:03.6]} 38... g6
{[%clk 0:00:05.2]} 39. Rc2 {[%clk 0:00:03.5]} 39... Kg7 {[%clk 0:00:04.9]} 40.
Ke1 {[%clk 0:00:04.1]} 40... Kf6 {[%clk 0:00:05.4]} 41. Rd2 {[%clk 0:00:04.7]}
41... Rxd2 {[%clk 0:00:02.9]} 42. Kxd2 {[%clk 0:00:05.6]} 42... Ke6 {[%clk
0:00:03.3]} 43. Kc3 {[%clk 0:00:05.9]} 43... Kd5 {[%clk 0:00:03.7]} 44. Bd3
{[%clk 0:00:06.1]} 44... Kd6 {[%clk 0:00:01.8]} 45. Be4 {[%clk 0:00:06.1]} 45...
Ke6 {[%clk 0:00:01.6]} 46. f4 {[%clk 0:00:05.7]} 46... Ng4 {[%clk 0:00:02]} 47.
Kc4 {[%clk 0:00:05.7]} 47... Ne3+ {[%clk 0:00:02.9]} 48. Kxc5 {[%clk 0:00:05.5]}
48... Nf1 {[%clk 0:00:03.5]} 49. Bxg6 {[%clk 0:00:05.6]} 49... Nxg3 {[%clk
0:00:04.4]} 50. Kb5 {[%clk 0:00:05.2]} 50... Kf6 {[%clk 0:00:05]} 51. f5 {[%clk
0:00:05.1]} 51... Nxf5 {[%clk 0:00:03.7]} 52. Bxf5 {[%clk 0:00:04.7]} 52... Kxf5
{[%clk 0:00:04.6]} 53. Kxa5 {[%clk 0:00:04.3]} 53... Kg4 {[%clk 0:00:05.5]} 54.
b4 {[%clk 0:00:05]} 54... Kxh4 {[%clk 0:00:06.4]} 55. b5 {[%clk 0:00:05.9]}
55... Kg4 {[%clk 0:00:05.9]} 56. b6 {[%clk 0:00:06.8]} 56... h4 {[%clk
0:00:06.7]} 57. b7 {[%clk 0:00:07.7]} 57... h3 {[%clk 0:00:07.6]} 58. b8=Q
{[%clk 0:00:08.6]} 58... h2 {[%clk 0:00:08.5]} 59. Qxh2 {[%clk 0:00:09]} 1-0

[Event "Late-Titled-Tuesday-Blitz-January-23-2024"]
[Site "Chess.com"]
[Date "2024.01.23"]
[Round "6"]
[White "Elsa167"]
[Black "djano"]
[Result "0-1"]
[WhiteElo "2929"]
[BlackElo "2710"]
[TimeControl "180+1"]
[EndTime "15:05:56 PST"]
[Termination "djano won on time"]

1. d4 {[%clk 0:03:00.9]} 1... Nf6 {[%clk 0:02:59.3]} 2. c4 {[%clk 0:03:01.5]}
2... g6 {[%clk 0:02:58.7]} 3. Nc3 {[%clk 0:03:01.5]} 3... Bg7 {[%clk 0:02:58.7]}
4. e4 {[%clk 0:03:01.9]} 4... d6 {[%clk 0:02:59.1]} 5. h3 {[%clk 0:03:02.3]}
5... O-O {[%clk 0:02:57.5]} 6. Be3 {[%clk 0:03:02.6]} 6... c5 {[%clk 0:02:55.4]}
7. Nf3 {[%clk 0:03:02.5]} 7... cxd4 {[%clk 0:02:55]} 8. Nxd4 {[%clk 0:03:03.4]}
8... Nc6 {[%clk 0:02:55.2]} 9. Be2 {[%clk 0:03:03.4]} 9... Bd7 {[%clk
0:02:53.7]} 10. O-O {[%clk 0:03:03.1]} 10... Nxd4 {[%clk 0:02:52.1]} 11. Bxd4
{[%clk 0:03:04]} 11... Bc6 {[%clk 0:02:52.7]} 12. Qc2 {[%clk 0:03:04.2]} 12...
a5 {[%clk 0:02:45.5]} 13. Rad1 {[%clk 0:03:03.8]} 13... Nd7 {[%clk 0:02:35]} 14.
Bxg7 {[%clk 0:03:03.6]} 14... Kxg7 {[%clk 0:02:35.9]} 15. Bg4 {[%clk 0:03:04]}
15... Ne5 {[%clk 0:02:19.6]} 16. c5 {[%clk 0:03:02.3]} 16... Nxg4 {[%clk
0:02:12.1]} 17. hxg4 {[%clk 0:03:03.2]} 17... Qd7 {[%clk 0:02:12.5]} 18. cxd6
{[%clk 0:03:03.5]} 18... Qxg4 {[%clk 0:02:02.1]} 19. dxe7 {[%clk 0:03:03.3]}
19... Rfe8 {[%clk 0:02:02.3]} 20. Nd5 {[%clk 0:03:03.4]} 20... Bxd5 {[%clk
0:01:55.8]} 21. Qc3+ {[%clk 0:03:03.6]} 21... f6 {[%clk 0:01:45.6]} 22. exd5
{[%clk 0:03:01.3]} 22... Rxe7 {[%clk 0:01:45.4]} 23. d6 {[%clk 0:02:58.8]} 23...
Rd7 {[%clk 0:01:43.9]} 24. Rd5 {[%clk 0:02:43.9]} 24... Qe6 {[%clk 0:01:39]} 25.
Rfd1 {[%clk 0:02:43.5]} 25... a4 {[%clk 0:01:34.1]} 26. Qb4 {[%clk 0:02:34.5]}
26... Ra6 {[%clk 0:01:20.5]} 27. a3 {[%clk 0:02:24.3]} 27... h5 {[%clk
0:01:17.7]} 28. R5d4 {[%clk 0:02:20.8]} 28... Qb3 {[%clk 0:00:50.4]} 29. Qe1
{[%clk 0:01:49.8]} 29... Qf7 {[%clk 0:00:34.2]} 30. Re4 {[%clk 0:01:28.4]} 30...
Ra8 {[%clk 0:00:24.4]} 31. Re7 {[%clk 0:00:59.7]} 31... Rxe7 {[%clk 0:00:24.2]}
32. dxe7 {[%clk 0:01:00.6]} 32... Re8 {[%clk 0:00:22.8]} 33. Rd7 {[%clk
0:01:01]} 33... Qb3 {[%clk 0:00:20.3]} 34. Qd2 {[%clk 0:00:45.9]} 34... g5
{[%clk 0:00:13.1]} 35. Rc7 {[%clk 0:00:24.2]} 35... Kf7 {[%clk 0:00:11]} 36. Qe2
{[%clk 0:00:18.8]} 36... g4 {[%clk 0:00:07.5]} 37. Qe4 {[%clk 0:00:17.9]} 37...
Qd1+ {[%clk 0:00:06.2]} 38. Kh2 {[%clk 0:00:15.9]} 38... Qd6+ {[%clk 0:00:07.1]}
39. g3 {[%clk 0:00:14.9]} 39... Qxc7 {[%clk 0:00:07.6]} 40. Qh7+ {[%clk
0:00:14.1]} 40... Ke6 {[%clk 0:00:07.9]} 41. Qe4+ {[%clk 0:00:14.6]} 41... Kd7
{[%clk 0:00:07.8]} 42. Qd5+ {[%clk 0:00:13.6]} 42... Kxe7 {[%clk 0:00:07.8]} 43.
Qxh5 {[%clk 0:00:13.5]} 43... Qe5 {[%clk 0:00:07.3]} 44. Qh7+ {[%clk 0:00:13.6]}
44... Kd8 {[%clk 0:00:07.3]} 45. Qxb7 {[%clk 0:00:14.3]} 45... Rh8+ {[%clk
0:00:07.2]} 46. Kg2 {[%clk 0:00:13.7]} 46... Re8 {[%clk 0:00:05.7]} 47. Kh2
{[%clk 0:00:11.3]} 47... Qe4 {[%clk 0:00:01.9]} 48. Qb6+ {[%clk 0:00:11.8]}
48... Kd7 {[%clk 0:00:02.1]} 49. Qxf6 {[%clk 0:00:11]} 49... Re7 {[%clk
0:00:01.6]} 50. Kg1 {[%clk 0:00:06.6]} 50... Rh7 {[%clk 0:00:02.5]} 51. f3
{[%clk 0:00:02.4]} 51... Qe1+ {[%clk 0:00:01.9]} 52. Kg2 {[%clk 0:00:03]} 52...
Qe2+ {[%clk 0:00:02]} 53. Kg1 {[%clk 0:00:03.5]} 53... Qe3+ {[%clk 0:00:02.1]}
54. Kf1 {[%clk 0:00:04.4]} 54... Qxf3+ {[%clk 0:00:02.4]} 55. Kg1 {[%clk
0:00:05.2]} 55... Qxf6 {[%clk 0:00:02]} 0-1

[Event "Late-Titled-Tuesday-Blitz-January-23-2024"]
[Site "Chess.com"]
[Date "2024.01.23"]
[Round "6"]
[White "DonJuan_34"]
[Black "Jem"]
[Result "1-0"]
[WhiteElo "2392"]
[BlackElo "2168"]
[TimeControl "180+1"]
[EndTime "15:05:57 PST"]
[Termination "DonJuan_34 won by resignation"]

1. d4 {[%clk 0:03:00.9]} 1... Nf6 {[%clk 0:02:58.5]} 2. c4 {[%clk 0:03:00.3]}
2... g6 {[%clk 0:02:58.8]} 3. Nc3 {[%clk 0:03:00.8]} 3... Bg7 {[%clk 0:02:59]}
4. e4 {[%clk 0:03:01.2]} 4... d6 {[%clk 0:02:59.4]} 5. Nf3 {[%clk 0:03:01.4]}
5... O-O {[%clk 0:02:59.4]} 6. Be2 {[%clk 0:03:01.7]} 6... Nc6 {[%clk
0:02:58.8]} 7. d5 {[%clk 0:03:01.2]} 7... Nb8 {[%clk 0:02:54.8]} 8. O-O {[%clk
0:03:01.8]} 8... c5 {[%clk 0:02:54.8]} 9. h3 {[%clk 0:02:59.2]} 9... e6 {[%clk
0:02:53.1]} 10. Bf4 {[%clk 0:02:58.9]} 10... e5 {[%clk 0:02:49.2]} 11. Bh2
{[%clk 0:02:58.8]} 11... a6 {[%clk 0:02:46.9]} 12. a4 {[%clk 0:02:58.3]} 12...
h6 {[%clk 0:02:45.2]} 13. Ne1 {[%clk 0:02:57.8]} 13... Nbd7 {[%clk 0:02:40]} 14.
Nd3 {[%clk 0:02:57.9]} 14... Qc7 {[%clk 0:02:36]} 15. f4 {[%clk 0:02:50.5]}
15... exf4 {[%clk 0:02:32.4]} 16. Bxf4 {[%clk 0:02:50.3]} 16... Re8 {[%clk
0:02:27]} 17. Bf3 {[%clk 0:02:47.6]} 17... Nh7 {[%clk 0:02:15.1]} 18. Qd2 {[%clk
0:02:45.8]} 18... g5 {[%clk 0:02:05.6]} 19. Bh2 {[%clk 0:02:43.2]} 19... Ne5
{[%clk 0:02:03.9]} 20. Nxe5 {[%clk 0:02:37.3]} 20... Bxe5 {[%clk 0:02:03.6]} 21.
Bh5 {[%clk 0:02:28.6]} 21... Bd4+ {[%clk 0:01:38]} 22. Kh1 {[%clk 0:02:27]}
22... Nf6 {[%clk 0:01:38.1]} 23. Bf3 {[%clk 0:02:12.3]} 23... Kg7 {[%clk
0:01:36.9]} 24. Rae1 {[%clk 0:02:09.3]} 24... Bd7 {[%clk 0:01:32.1]} 25. Ne2
{[%clk 0:02:05.1]} 25... Be5 {[%clk 0:01:30.8]} 26. b3 {[%clk 0:01:55.8]} 26...
Re7 {[%clk 0:01:30]} 27. Ng3 {[%clk 0:01:50.3]} 27... Rae8 {[%clk 0:01:27.6]}
28. Nh5+ {[%clk 0:01:46.9]} 28... Nxh5 {[%clk 0:01:19.7]} 29. Bxh5 {[%clk
0:01:47.8]} 29... Bxh2 {[%clk 0:01:00.7]} 30. Kxh2 {[%clk 0:01:46.8]} 30... b5
{[%clk 0:00:59.8]} 31. e5 {[%clk 0:01:42.2]} 31... bxc4 {[%clk 0:00:29.7]} 32.
bxc4 {[%clk 0:01:35.9]} 32... Bxa4 {[%clk 0:00:22.5]} 33. e6 {[%clk 0:01:35.9]}
33... fxe6 {[%clk 0:00:22.2]} 34. Qd3 {[%clk 0:01:27.4]} 34... Rg8 {[%clk
0:00:03.3]} 35. Qg6+ {[%clk 0:01:26]} 35... Kh8 {[%clk 0:00:03.5]} 36. Qxh6+
{[%clk 0:01:24.4]} 36... Rh7 {[%clk 0:00:03.6]} 37. Qf6+ {[%clk 0:01:24.8]}
37... Qg7 {[%clk 0:00:03.6]} 38. Bf7 {[%clk 0:01:15.4]} 38... Qxf6 {[%clk
0:00:02.5]} 39. Rxf6 {[%clk 0:01:16]} 39... Rf8 {[%clk 0:00:02.7]} 40. dxe6
{[%clk 0:01:15.7]} 40... Be8 {[%clk 0:00:01.6]} 41. Ref1 {[%clk 0:01:03.9]}
41... Bxf7 {[%clk 0:00:01.7]} 42. exf7 {[%clk 0:01:01.7]} 42... Kg7 {[%clk
0:00:02.1]} 43. Rxd6 {[%clk 0:01:00.4]} 43... Rh6 {[%clk 0:00:02.4]} 44. Rxh6
{[%clk 0:00:56.8]} 44... Kxh6 {[%clk 0:00:03.3]} 45. Rf6+ {[%clk 0:00:56.7]}
45... Kg7 {[%clk 0:00:03.7]} 46. Rxa6 {[%clk 0:00:57.1]} 46... Rxf7 {[%clk
0:00:04.3]} 47. Rc6 {[%clk 0:00:56.1]} 47... Rf5 {[%clk 0:00:04.5]} 48. Kg3
{[%clk 0:00:54.7]} 48... Re5 {[%clk 0:00:04.7]} 49. Kg4 {[%clk 0:00:52.9]} 49...
Kf7 {[%clk 0:00:04.9]} 50. g3 {[%clk 0:00:44.1]} 50... Kg7 {[%clk 0:00:05.1]}
51. Rd6 {[%clk 0:00:41.3]} 51... Kf7 {[%clk 0:00:05]} 52. Rd3 {[%clk 0:00:36.8]}
52... Re4+ {[%clk 0:00:04.5]} 53. Kxg5 {[%clk 0:00:36.6]} 53... Rxc4 {[%clk
0:00:05.4]} 54. g4 {[%clk 0:00:36.5]} 54... Ra4 {[%clk 0:00:02.8]} 55. Rd7+
{[%clk 0:00:33.2]} 55... Ke6 {[%clk 0:00:02.9]} 56. Rc7 {[%clk 0:00:33.8]} 56...
c4 {[%clk 0:00:02.6]} 57. h4 {[%clk 0:00:33.4]} 57... Ra5+ {[%clk 0:00:02.3]}
58. Kg6 {[%clk 0:00:33.1]} 58... Kd5 {[%clk 0:00:02.5]} 59. h5 {[%clk
0:00:33.2]} 59... Rc5 {[%clk 0:00:02]} 60. Rxc5+ {[%clk 0:00:25]} 60... Kxc5
{[%clk 0:00:02.9]} 61. h6 {[%clk 0:00:25.4]} 61... c3 {[%clk 0:00:03.5]} 62. h7
{[%clk 0:00:25.7]} 62... c2 {[%clk 0:00:04.1]} 63. h8=Q {[%clk 0:00:25.5]} 63...
c1=Q {[%clk 0:00:04.3]} 64. Qc8+ {[%clk 0:00:25.3]} 64... Kd4 {[%clk 0:00:04.6]}
65. Qxc1 {[%clk 0:00:24.5]} 1-0

[Event "Late-Titled-Tuesday-Blitz-January-23-2024"]
[Site "Chess.com"]
[Date "2024.01.23"]
[Round "6"]
[White "iulik86"]
[Black "MikaelyanArman"]
[Result "1-0"]
[WhiteElo "2613"]
[BlackElo "2820"]
[TimeControl "180+1"]
[EndTime "15:06:01 PST"]
[Termination "iulik86 won on time"]

1. d4 {[%clk 0:02:54.2]} 1... Na6 {[%clk 0:03:00.2]} 2. e4 {[%clk 0:02:53.7]}
2... c6 {[%clk 0:03:00.9]} 3. Nf3 {[%clk 0:02:49]} 3... Nc7 {[%clk 0:03:00.3]}
4. Bd3 {[%clk 0:02:48.9]} 4... d5 {[%clk 0:03:00.8]} 5. Nbd2 {[%clk 0:02:48.8]}
5... g6 {[%clk 0:02:59.4]} 6. O-O {[%clk 0:02:48.3]} 6... Bg7 {[%clk 0:03:00.1]}
7. c3 {[%clk 0:02:48.5]} 7... Bg4 {[%clk 0:02:53.2]} 8. Re1 {[%clk 0:02:46.7]}
8... e6 {[%clk 0:02:52.6]} 9. h3 {[%clk 0:02:45.4]} 9... Bxf3 {[%clk 0:02:52.9]}
10. Qxf3 {[%clk 0:02:45.8]} 10... Ne7 {[%clk 0:02:53.8]} 11. h4 {[%clk
0:02:43.3]} 11... h6 {[%clk 0:02:47.4]} 12. h5 {[%clk 0:02:42.2]} 12... g5
{[%clk 0:02:47.5]} 13. Qg3 {[%clk 0:02:41.2]} 13... dxe4 {[%clk 0:02:41.4]} 14.
Nxe4 {[%clk 0:02:39.5]} 14... Nf5 {[%clk 0:02:40.9]} 15. Qh3 {[%clk 0:02:34.1]}
15... O-O {[%clk 0:02:26.9]} 16. Nc5 {[%clk 0:02:28.3]} 16... b6 {[%clk
0:02:21.1]} 17. Nb3 {[%clk 0:02:23.7]} 17... c5 {[%clk 0:02:14.5]} 18. Bxf5
{[%clk 0:02:14.5]} 18... exf5 {[%clk 0:02:15.4]} 19. Qxf5 {[%clk 0:02:14.3]}
19... c4 {[%clk 0:02:11.4]} 20. Nd2 {[%clk 0:02:10.1]} 20... Re8 {[%clk
0:02:11.8]} 21. Ne4 {[%clk 0:02:03.9]} 21... Qd5 {[%clk 0:01:48]} 22. Qxd5
{[%clk 0:01:54.1]} 22... Nxd5 {[%clk 0:01:48.9]} 23. Bd2 {[%clk 0:01:54.2]}
23... Bf8 {[%clk 0:01:46]} 24. b3 {[%clk 0:01:42.3]} 24... b5 {[%clk 0:01:37.8]}
25. bxc4 {[%clk 0:01:40.2]} 25... bxc4 {[%clk 0:01:38.7]} 26. Rab1 {[%clk
0:01:40.4]} 26... Rab8 {[%clk 0:01:36.8]} 27. f3 {[%clk 0:01:28.4]} 27... Ba3
{[%clk 0:01:33.5]} 28. Kf1 {[%clk 0:01:21.5]} 28... f5 {[%clk 0:01:29.4]} 29.
Ng3 {[%clk 0:01:15]} 29... Rxe1+ {[%clk 0:00:59.5]} 30. Rxe1 {[%clk 0:01:13.9]}
30... Rb2 {[%clk 0:01:00.2]} 31. Bc1 {[%clk 0:01:04.8]} 31... Rxa2 {[%clk
0:01:00.3]} 32. Nxf5 {[%clk 0:00:58.4]} 32... Bxc1 {[%clk 0:00:49.4]} 33. Rxc1
{[%clk 0:00:56.4]} 33... Nf4 {[%clk 0:00:48.6]} 34. Nxh6+ {[%clk 0:00:50.1]}
34... Kh7 {[%clk 0:00:48.8]} 35. Ng4 {[%clk 0:00:46.4]} 35... Nxh5 {[%clk
0:00:44.9]} 36. Rb1 {[%clk 0:00:42.9]} 36... Ng3+ {[%clk 0:00:44.2]} 37. Kg1
{[%clk 0:00:37.6]} 37... Ne2+ {[%clk 0:00:44.2]} 38. Kh2 {[%clk 0:00:35.9]}
38... Nxc3 {[%clk 0:00:43.4]} 39. Rb7+ {[%clk 0:00:35.5]} 39... Kg6 {[%clk
0:00:43.7]} 40. Rc7 {[%clk 0:00:35.3]} 40... Ra4 {[%clk 0:00:31.8]} 41. Ne5+
{[%clk 0:00:30.4]} 41... Kf6 {[%clk 0:00:27.5]} 42. Nxc4 {[%clk 0:00:29.2]}
42... Nd5 {[%clk 0:00:26.1]} 43. Rc6+ {[%clk 0:00:25.5]} 43... Ke7 {[%clk
0:00:26.6]} 44. Kg3 {[%clk 0:00:16.3]} 44... Ra2 {[%clk 0:00:25.4]} 45. Rc5
{[%clk 0:00:13.8]} 45... Ke6 {[%clk 0:00:22.7]} 46. Rc6+ {[%clk 0:00:13.6]}
46... Ke7 {[%clk 0:00:23.2]} 47. Rc5 {[%clk 0:00:13.8]} 47... Ke6 {[%clk
0:00:15.2]} 48. Rc6+ {[%clk 0:00:13.7]} 48... Kd7 {[%clk 0:00:09.3]} 49. Ne5+
{[%clk 0:00:12.8]} 49... Ke7 {[%clk 0:00:09.9]} 50. Rc5 {[%clk 0:00:11.3]} 50...
Ne3 {[%clk 0:00:09.5]} 51. Ng4 {[%clk 0:00:05.7]} 51... Nf1+ {[%clk 0:00:01.7]}
52. Kh3 {[%clk 0:00:05.9]} 52... a5 {[%clk 0:00:02.5]} 53. Rxg5 {[%clk
0:00:05.1]} 53... a4 {[%clk 0:00:02.1]} 54. Ra5 {[%clk 0:00:05]} 54... a3 {[%clk
0:00:02.8]} 55. Ra6 {[%clk 0:00:03.9]} 55... Ra1 {[%clk 0:00:02.8]} 56. d5
{[%clk 0:00:04]} 56... Nd2 {[%clk 0:00:01.8]} 57. Ne5 {[%clk 0:00:03.5]} 57...
Nb3 {[%clk 0:00:01.1]} 58. d6+ {[%clk 0:00:03.2]} 1-0

[Event "Late-Titled-Tuesday-Blitz-January-23-2024"]
[Site "Chess.com"]
[Date "2024.01.23"]
[Round "6"]
[White "CarrotsandPizza"]
[Black "el008"]
[Result "0-1"]
[WhiteElo "2533"]
[BlackElo "2466"]
[TimeControl "180+1"]
[EndTime "15:06:03 PST"]
[Termination "el008 won on time"]

1. e4 {[%clk 0:02:59.2]} 1... c6 {[%clk 0:03:00.2]} 2. d4 {[%clk 0:02:58.6]}
2... d5 {[%clk 0:03:00.8]} 3. e5 {[%clk 0:02:58.3]} 3... c5 {[%clk 0:03:00.3]}
4. dxc5 {[%clk 0:02:58.5]} 4... e6 {[%clk 0:03:00.2]} 5. Nf3 {[%clk 0:02:58]}
5... Bxc5 {[%clk 0:02:58]} 6. Bd3 {[%clk 0:02:58]} 6... Ne7 {[%clk 0:02:47.5]}
7. Bf4 {[%clk 0:02:56.7]} 7... Nd7 {[%clk 0:02:39.2]} 8. O-O {[%clk 0:02:51.8]}
8... Bb6 {[%clk 0:02:36]} 9. Re1 {[%clk 0:02:44]} 9... Nc5 {[%clk 0:02:36]} 10.
Bf1 {[%clk 0:02:43.5]} 10... Bd7 {[%clk 0:02:34]} 11. Nc3 {[%clk 0:02:32.5]}
11... a6 {[%clk 0:02:33.2]} 12. Nd4 {[%clk 0:02:21.7]} 12... Nc6 {[%clk
0:02:28.1]} 13. Nf3 {[%clk 0:02:20.9]} 13... Qc7 {[%clk 0:02:25.5]} 14. a3
{[%clk 0:02:18.9]} 14... Ne7 {[%clk 0:02:17.9]} 15. Nd4 {[%clk 0:01:47.3]} 15...
Ba7 {[%clk 0:01:56.5]} 16. Rc1 {[%clk 0:01:42.6]} 16... b5 {[%clk 0:01:56.6]}
17. b4 {[%clk 0:01:38.7]} 17... Nb7 {[%clk 0:01:53.2]} 18. Nce2 {[%clk
0:01:38.9]} 18... Nd8 {[%clk 0:01:50.1]} 19. Ng3 {[%clk 0:01:37.2]} 19... Ng6
{[%clk 0:01:45.1]} 20. Qd2 {[%clk 0:01:32.6]} 20... Qb6 {[%clk 0:01:40.1]} 21.
c3 {[%clk 0:01:32.1]} 21... Nc6 {[%clk 0:01:33.4]} 22. Nh5 {[%clk 0:01:28.2]}
22... Nxd4 {[%clk 0:01:27.4]} 23. cxd4 {[%clk 0:01:26.6]} 23... Qxd4 {[%clk
0:01:28.3]} 24. Nxg7+ {[%clk 0:01:21.2]} 24... Kf8 {[%clk 0:01:28.2]} 25. Qxd4
{[%clk 0:01:17.3]} 25... Bxd4 {[%clk 0:01:29.1]} 26. Bh6 {[%clk 0:01:17.6]}
26... Ke7 {[%clk 0:01:17.4]} 27. Bg5+ {[%clk 0:01:16.2]} 27... Kf8 {[%clk
0:01:17.5]} 28. Rc7 {[%clk 0:01:10]} 28... Kxg7 {[%clk 0:01:12.9]} 29. Bf6+
{[%clk 0:01:10]} 29... Kh6 {[%clk 0:01:10.7]} 30. Bxh8 {[%clk 0:01:09.5]} 30...
Rxh8 {[%clk 0:01:08.7]} 31. Rxd7 {[%clk 0:01:06.7]} 31... Nxe5 {[%clk
0:01:09.2]} 32. Rc7 {[%clk 0:00:58.6]} 32... Kg7 {[%clk 0:01:06.4]} 33. Rd1
{[%clk 0:00:52.6]} 33... Bb2 {[%clk 0:01:01.3]} 34. Rb1 {[%clk 0:00:43.4]} 34...
Bd4 {[%clk 0:00:57.2]} 35. Be2 {[%clk 0:00:38.6]} 35... Ng6 {[%clk 0:00:51.4]}
36. Rd1 {[%clk 0:00:34.4]} 36... Bb2 {[%clk 0:00:50]} 37. Rb1 {[%clk 0:00:28]}
37... Be5 {[%clk 0:00:48.2]} 38. Rc6 {[%clk 0:00:24.4]} 38... Nf4 {[%clk
0:00:47.8]} 39. Bf1 {[%clk 0:00:24.2]} 39... Ra8 {[%clk 0:00:45.8]} 40. g3
{[%clk 0:00:22.3]} 40... Ng6 {[%clk 0:00:46.3]} 41. f4 {[%clk 0:00:21.3]} 41...
Bd4+ {[%clk 0:00:46.7]} 42. Kg2 {[%clk 0:00:21.9]} 42... Ne7 {[%clk 0:00:47.3]}
43. Rc7 {[%clk 0:00:21.3]} 43... Nf5 {[%clk 0:00:47.8]} 44. Bd3 {[%clk
0:00:20.3]} 44... Nd6 {[%clk 0:00:45.9]} 45. Rd1 {[%clk 0:00:18.4]} 45... Bb2
{[%clk 0:00:45.7]} 46. Rb1 {[%clk 0:00:17.3]} 46... Bf6 {[%clk 0:00:45]} 47. g4
{[%clk 0:00:14.9]} 47... Bd8 {[%clk 0:00:39.3]} 48. Rd7 {[%clk 0:00:14.2]} 48...
Ne8 {[%clk 0:00:33.3]} 49. g5 {[%clk 0:00:11.7]} 49... Bc7 {[%clk 0:00:32.6]}
50. Kf3 {[%clk 0:00:11.6]} 50... Rc8 {[%clk 0:00:26.4]} 51. Rc1 {[%clk
0:00:11.4]} 51... Kg8 {[%clk 0:00:17.2]} 52. a4 {[%clk 0:00:09.8]} 52... bxa4
{[%clk 0:00:16.6]} 53. Bxa6 {[%clk 0:00:10]} 53... Ra8 {[%clk 0:00:17]} 54. Bb5
{[%clk 0:00:10.2]} 54... a3 {[%clk 0:00:12]} 55. Re7 {[%clk 0:00:08.2]} 55...
Nd6 {[%clk 0:00:10.7]} 56. Rexc7 {[%clk 0:00:05]} 56... Nxb5 {[%clk 0:00:11.3]}
57. Rc8+ {[%clk 0:00:05.6]} 57... Rxc8 {[%clk 0:00:12.1]} 58. Rxc8+ {[%clk
0:00:05.6]} 58... Kg7 {[%clk 0:00:13]} 59. Ra8 {[%clk 0:00:05.3]} 59... f6
{[%clk 0:00:07.6]} 60. Kg4 {[%clk 0:00:05]} 60... fxg5 {[%clk 0:00:07.4]} 61.
Kxg5 {[%clk 0:00:01.8]} 61... h6+ {[%clk 0:00:07.6]} 62. Kg4 {[%clk 0:00:02.2]}
62... Kf6 {[%clk 0:00:08]} 0-1